bitfinex/quotes_BTCUSD_20230114
["timestamp","ask_amount","ask_price","bid_price","bid_amount"]
[1673664791568,0.00773783,20940.0,20937.0,0.19072595]
[1673664791823,0.00773783,20940.0,20939.0,0.21453834]
[1673664792097,0.00773783,20940.0,20939.0,0.29859329]
[1673664792338,0.00773783,20940.0,20939.0,0.21453834]
[1673664792593,0.00773783,20940.0,20939.0,1.45611881]
[1673664792866,0.00773783,20940.0,20939.0,0.31652389]
[1673664793111,0.00773783,20940.0,20939.0,1.55810278]
[1673664793361,0.00773783,20940.0,20939.0,0.31652389]
[1673664793586,0.01473783,20940.0,20939.0,0.31652389]
[1673664793815,0.00773783,20940.0,20939.0,0.10198555]
[1673664794058,0.12573783,20940.0,20939.0,0.29633121]
[1673664794309,0.00773783,20940.0,20939.0,0.79092067]
[1673664794564,0.12573783,20940.0,20939.0,0.79669685]
[1673664795060,0.12573783,20940.0,20939.0,0.51064573]
[1673664795485,0.12573783,20940.0,20939.0,0.29610739]
[1673664796823,0.00773783,20940.0,20939.0,0.50464573]
[1673664797072,0.12573783,20940.0,20939.0,0.29610739]
[1673664798471,0.0666746,20940.0,20939.0,0.29610739]
[1673664799500,0.0666746,20940.0,20939.0,0.54920261]
[1673664799748,0.00754941,20942.0,20940.0,0.2]
[1673664799989,0.00754941,20942.0,20941.0,0.620791]
[1673664800925,0.00754941,20942.0,20941.0,0.76346556]
[1673664801167,0.00754941,20942.0,20941.0,0.87346556]
[1673664801395,0.00754941,20942.0,20941.0,0.89699273]
[1673664801635,0.00754941,20942.0,20941.0,0.730791]
[1673664801875,0.00754941,20942.0,20941.0,0.87346556]
[1673664802351,0.00754941,20942.0,20941.0,1.23015195]
[1673664802609,0.00754941,20942.0,20941.0,1.85212207]
[1673664802814,0.00754941,20942.0,20941.0,1.74212207]
[1673664803061,0.00754941,20942.0,20941.0,1.66811023]
[1673664803301,0.00754941,20942.0,20941.0,1.74187761]
[1673664803538,0.00754941,20942.0,20941.0,1.8847904]
[1673664803825,0.00754941,20942.0,20941.0,1.07565724]
[1673664803826,0.19827536,20942.0,20941.0,1.07565724]
[1673664804065,0.19827536,20942.0,20941.0,0.79427102]
[1673664804066,0.00754941,20942.0,20941.0,0.79427102]
[1673664804319,0.00754941,20942.0,20941.0,0.93327102]
[1673664804541,0.00754941,20942.0,20941.0,0.31248002]
[1673664804799,0.00754941,20942.0,20941.0,0.139]
[1673664805527,0.00754941,20942.0,20939.0,0.14265342]
[1673664806050,0.00754941,20942.0,20941.0,0.044]
[1673664806284,0.00754941,20942.0,20938.0,0.39498]
[1673664806530,0.19827536,20942.0,20938.0,0.39498]
[1673664806775,0.19927536,20942.0,20938.0,0.3413732]
[1673664807018,0.19927536,20942.0,20937.0,1.7157]
[1673664807259,0.83003936,20942.0,20937.0,1.90860885]
[1673664807504,0.83003936,20942.0,20937.0,1.2921638]
[1673664807737,0.19827536,20942.0,20937.0,1.72015495]
[1673664807974,0.19072595,20941.0,20937.0,1.0152]
[1673664808207,0.19072595,20940.0,20936.0,0.19431074]
[1673664808466,0.19072595,20939.0,20936.0,0.19431074]
[1673664808722,0.19072595,20939.0,20938.0,0.14]
[1673664808965,0.620792,20941.0,20938.0,0.03343107]
[1673664809186,0.001,20940.0,20938.0,0.03343107]
[1673664809421,0.620792,20941.0,20938.0,0.03343107]
[1673664809657,0.018,20939.0,20938.0,0.03343107]
[1673664809893,0.62831441,20942.0,20938.0,0.03343107]
[1673664810149,0.018,20940.0,20938.0,0.11748602]
[1673664810381,0.62831441,20942.0,20937.0,0.17494071]
[1673664810615,0.62831441,20942.0,20938.0,0.20388128]
[1673664810852,0.62831441,20942.0,20938.0,0.28793623]
[1673664811328,0.00754941,20942.0,20939.0,0.08405495]
[1673664811569,0.00754941,20942.0,20940.0,0.17430398]
[1673664812340,0.00754941,20942.0,20940.0,0.79512298]
[1673664812580,0.00754941,20942.0,20940.0,0.624819]
[1673664812581,0.01754941,20942.0,20940.0,0.624819]
[1673664812818,0.00754941,20942.0,20940.0,0.76478639]
[1673664813329,0.00854941,20942.0,20940.0,0.76478639]
[1673664813581,0.00754941,20942.0,20940.0,0.76478639]
[1673664814294,0.00854941,20942.0,20941.0,0.16121382]
[1673664814764,0.00954941,20942.0,20941.0,0.16121382]
[1673664814982,0.00754941,20942.0,20941.0,0.16121382]
[1673664815699,0.00754941,20942.0,20941.0,0.36121382]
[1673664815980,0.00754941,20942.0,20941.0,0.820791]
[1673664815981,0.01754941,20942.0,20941.0,0.820791]
[1673664816229,0.00754941,20942.0,20941.0,0.820791]
[1673664816481,0.00754941,20942.0,20941.0,1.05402083]
[1673664816724,0.00754941,20942.0,20941.0,1.06375862]
[1673664816969,0.00754941,20942.0,20941.0,0.86375862]
[1673664817452,0.00754941,20942.0,20941.0,0.620791]
[1673664817699,0.00754941,20942.0,20941.0,0.77227415]
[1673664817946,0.00747819,20942.0,20941.0,0.96649105]
[1673664818197,0.00747819,20942.0,20941.0,0.820791]
[1673664818480,0.00747819,20942.0,20941.0,0.620791]
[1673664818746,0.00847819,20942.0,20941.0,0.95707417]
[1673664818992,0.00747819,20942.0,20941.0,0.620791]
[1673664819236,0.00747819,20942.0,20941.0,0.80717722]
[1673664819474,0.00747819,20942.0,20941.0,0.78785379]
[1673664819719,0.00847819,20942.0,20941.0,1.12245009]
[1673664819958,0.00847819,20942.0,20941.0,0.92245009]
[1673664820429,0.00847819,20942.0,20941.0,1.12245009]
[1673664820658,0.00747819,20942.0,20941.0,0.98345009]
[1673664820893,0.00847819,20942.0,20941.0,0.959791]
[1673664821159,0.00847819,20942.0,20941.0,0.81401238]
[1673664821401,0.00947819,20942.0,20941.0,0.95301238]
[1673664821657,0.00847819,20942.0,20941.0,0.81401238]
[1673664821895,0.00947819,20942.0,20941.0,0.95301238]
[1673664822367,0.00947819,20942.0,20941.0,0.81401238]
[1673664822368,0.00747819,20942.0,20941.0,0.81401238]
[1673664822615,0.00847819,20942.0,20941.0,0.95301238]
[1673664822847,0.00847819,20942.0,20941.0,0.139]
[1673664823568,0.00747819,20942.0,20939.0,0.80471335]
[1673664824046,0.00847819,20942.0,20941.0,0.139]
[1673664824286,0.00747819,20942.0,20939.0,1.00471335]
[1673664824534,0.00747819,20942.0,20939.0,1.14471335]
[1673664824535,0.00847819,20942.0,20939.0,1.14471335]
[1673664824770,0.00747819,20942.0,20939.0,0.80471335]
[1673664824998,0.00747819,20942.0,20941.0,0.044]
[1673664825237,0.00747819,20942.0,20939.0,0.18386435]
[1673664825497,0.19920414,20942.0,20939.0,0.14]
[1673664825731,0.00747819,20942.0,20938.0,0.17799776]
[1673664825995,0.19820414,20942.0,20941.0,0.044]
[1673664826237,0.19820414,20942.0,20938.0,0.17799776]
[1673664826238,0.00747819,20942.0,20938.0,0.17799776]
[1673664826473,0.19920414,20942.0,20939.0,0.117]
[1673664826707,0.00747819,20942.0,20938.0,0.17799776]
[1673664826942,0.01747819,20942.0,20941.0,0.004]
[1673664827421,0.01747819,20942.0,20938.0,0.32038398]
[1673664827422,0.00747819,20942.0,20938.0,0.32038398]
[1673664827665,0.19820414,20942.0,20939.0,0.044]
[1673664827895,0.00747819,20942.0,20938.0,0.17799776]
[1673664828150,0.20820414,20942.0,20941.0,0.004]
[1673664828387,0.01747819,20942.0,20937.0,0.76329422]
[1673664828627,0.19072595,20941.0,20937.0,0.14238622]
[1673664829355,0.19072595,20940.0,20939.0,0.044]
[1673664829596,0.2,20940.0,20936.0,0.35595652]
[1673664829838,0.39072595,20940.0,20937.0,0.117]
[1673664830073,1.01154795,20940.0,20936.0,0.14238622]
[1673664830310,0.320743,20939.0,20935.0,0.14257622]
[1673664830571,0.87315864,20938.0,20935.0,0.00019]
[1673664830819,0.941653,20937.0,20934.0,0.14238622]
[1673664831067,0.205231,20936.0,20933.0,0.5195384]
[1673664831394,0.19072595,20936.0,20935.0,0.044]
[1673664831636,0.620918,20937.0,20935.0,0.044]
[1673664831875,0.620889,20938.0,20935.0,0.044]
[1673664832370,0.320743,20937.0,20934.0,0.1981992]
[1673664832605,0.01,20937.0,20934.0,0.009]
[1673664832851,0.786304,20940.0,20935.0,0.14238622]
[1673664833111,0.01,20938.0,20936.0,0.08405495]
[1673664833351,0.100104,20940.0,20935.0,0.14238622]
[1673664833580,0.01,20937.0,20936.0,0.22644117]
[1673664833825,0.100104,20940.0,20936.0,0.14238622]
[1673664834058,0.100104,20940.0,20936.0,1.06093747]
[1673664834292,0.065104,20940.0,20936.0,1.06993747]
[1673664834516,0.065104,20940.0,20936.0,1.26993747]
[1673664834760,0.065104,20940.0,20937.0,0.35595652]
[1673664835011,0.065104,20940.0,20937.0,1.26091147]
[1673664835262,0.065104,20940.0,20939.0,0.35595652]
[1673664835508,0.065104,20940.0,20939.0,1.59765852]
[1673664835771,0.065104,20940.0,20939.0,1.4552723]
[1673664835984,0.065104,20940.0,20939.0,1.74062141]
[1673664836213,0.065104,20940.0,20939.0,1.72705111]
[1673664836713,0.065104,20940.0,20939.0,2.08373128]
[1673664837239,0.065104,20940.0,20939.0,2.22473128]
[1673664837486,0.065104,20940.0,20939.0,2.08373128]
[1673664837956,0.065104,20940.0,20939.0,2.23226905]
[1673664838190,0.065104,20940.0,20939.0,1.88972707]
[1673664838428,0.065104,20940.0,20939.0,2.02972707]
[1673664839921,0.065104,20940.0,20939.0,1.81558888]
[1673664840294,0.065104,20940.0,20939.0,2.22373128]
[1673664840521,0.065104,20940.0,20939.0,2.71336079]
[1673664840773,0.065104,20940.0,20939.0,2.10580475]
[1673664840992,0.065104,20940.0,20939.0,1.93858907]
[1673664841228,0.065104,20940.0,20939.0,2.72974082]
[1673664841462,0.065104,20940.0,20939.0,1.72566047]
[1673664841694,0.065104,20940.0,20939.0,1.581702]
[1673664841927,0.065104,20940.0,20939.0,2.10801599]
[1673664842399,0.065104,20940.0,20939.0,1.96801599]
[1673664842662,0.065104,20940.0,20939.0,3.66633088]
[1673664842919,0.00747819,20942.0,20940.0,0.2]
[1673664843162,0.00747819,20942.0,20941.0,3.37331004]
[1673664843408,0.00747819,20942.0,20941.0,4.04229813]
[1673664843945,0.00784628,20945.0,20942.0,0.20007]
[1673664844191,0.00784628,20945.0,20944.0,3.04765724]
[1673664844438,0.00784628,20945.0,20944.0,4.4213857]
[1673664844584,0.00784628,20945.0,20944.0,4.00292608]
[1673664845054,0.00784628,20945.0,20944.0,3.86602608]
[1673664845282,0.00784628,20945.0,20944.0,2.839454]
[1673664845733,0.00784628,20945.0,20944.0,2.98343592]
[1673664845942,0.00784628,20945.0,20944.0,2.78689716]
[1673664846177,0.00784628,20945.0,20944.0,2.64789716]
[1673664846329,0.00784628,20945.0,20944.0,2.64291524]
[1673664846548,0.00784628,20945.0,20944.0,2.357752]
[1673664846765,0.00784628,20945.0,20944.0,2.64291007]
[1673664847007,0.00784628,20945.0,20944.0,2.001106]
[1673664847428,0.00784628,20945.0,20944.0,2.201106]
[1673664847705,0.00784628,20945.0,20944.0,3.15611267]
[1673664847939,0.00784628,20945.0,20944.0,2.201106]
[1673664848173,0.00784628,20945.0,20944.0,2.062106]
[1673664848413,0.00784628,20945.0,20944.0,2.201106]
[1673664848649,0.00784628,20945.0,20944.0,2.55730687]
[1673664848900,0.00784628,20945.0,20944.0,2.70327259]
[1673664849141,0.00784628,20945.0,20944.0,2.8422685]
[1673664849377,0.00784628,20945.0,20944.0,2.28606763]
[1673664849625,0.00784628,20945.0,20944.0,2.4736505]
[1673664849867,0.00784628,20945.0,20944.0,2.40589474]
[1673664850155,0.19857223,20945.0,20944.0,0.90217963]
[1673664850405,0.00784628,20945.0,20944.0,0.139]
[1673664850897,0.00784628,20945.0,20943.0,0.620731]
[1673664851145,0.00884628,20945.0,20944.0,0.139]
[1673664851435,0.00784628,20945.0,20943.0,0.97401837]
[1673664851682,0.00884628,20945.0,20944.0,0.139]
[1673664851938,0.00784628,20945.0,20943.0,0.77401837]
[1673664852208,0.00884628,20945.0,20943.0,0.91401837]
[1673664852457,0.00884628,20945.0,20943.0,0.14]
[1673664852983,0.00784628,20945.0,20941.0,1.71218814]
[1673664853218,0.19957223,20945.0,20943.0,0.128]
[1673664853475,0.00884628,20945.0,20943.0,0.128]
[1673664854211,0.00884628,20945.0,20942.0,0.15090393]
[1673664854212,0.00784628,20945.0,20942.0,0.15090393]
[1673664854451,0.00884628,20945.0,20942.0,0.15090393]
[1673664854693,0.00784628,20945.0,20942.0,0.15090393]
[1673664854901,0.00784628,20945.0,20943.0,0.055]
[1673664855109,0.00784628,20945.0,20942.0,0.15090393]
[1673664855389,0.00884628,20945.0,20942.0,0.27890393]
[1673664855598,0.00784628,20945.0,20942.0,0.15090393]
[1673664855870,0.00784628,20945.0,20944.0,0.16989964]
[1673664856141,0.00784628,20945.0,20944.0,1.41130364]
[1673664856679,0.00784628,20945.0,20944.0,1.38388163]
[1673664856928,0.00784628,20945.0,20944.0,1.58388163]
[1673664857175,0.00884628,20945.0,20944.0,1.58388163]
[1673664857423,0.00784628,20945.0,20944.0,1.73128874]
[1673664857703,0.01784628,20945.0,20944.0,1.58388163]
[1673664857924,0.01784628,20945.0,20944.0,1.79760987]
[1673664858163,0.01784628,20945.0,20944.0,1.94009387]
[1673664858407,0.00784628,20945.0,20944.0,2.0825665]
[1673664858668,0.00884628,20945.0,20944.0,1.93660487]
[1673664858911,0.00784628,20945.0,20944.0,1.79760487]
[1673664859125,0.00784628,20945.0,20944.0,1.93660487]
[1673664859352,0.00884628,20945.0,20944.0,2.2213216]
[1673664859613,0.00884628,20945.0,20944.0,1.93660487]
[1673664860136,0.00784628,20945.0,20944.0,1.441404]
[1673664860379,0.00884628,20945.0,20944.0,1.580404]
[1673664860654,0.00784628,20945.0,20944.0,1.441404]
[1673664860894,0.00884628,20945.0,20944.0,1.580404]
[1673664861160,0.00784628,20945.0,20944.0,2.39630546]
[1673664861388,0.00884628,20945.0,20944.0,3.01150715]
[1673664861638,0.00784628,20945.0,20944.0,3.30145639]
[1673664861878,0.00884628,20945.0,20944.0,3.44045639]
[1673664862136,0.00784628,20945.0,20944.0,2.91026652]
[1673664862384,0.00884628,20945.0,20944.0,3.47621576]
[1673664862903,0.00034525,20946.0,20945.0,0.820673]
[1673664863145,0.00556538,20955.0,20946.0,0.2]
[1673664863385,0.00556538,20955.0,20949.0,0.14219289]
[1673664863626,0.00556538,20955.0,20950.0,1.32505695]
[1673664863873,0.00556538,20955.0,20951.0,0.08405495]
[1673664864122,0.00556538,20955.0,20952.0,0.70451495]
[1673664864369,0.00556538,20955.0,20953.0,0.15445104]
[1673664864616,0.00656538,20955.0,20953.0,0.23850599]
[1673664864826,0.00556538,20955.0,20953.0,0.15445104]
[1673664865070,0.00656538,20955.0,20953.0,0.15445104]
[1673664865546,0.01556538,20955.0,20953.0,0.08405495]
[1673664865780,0.77656256,20960.0,20955.0,1.240742]
[1673664866021,0.6656,20961.0,20956.0,0.70437495]
[1673664866275,0.6656,20961.0,20957.0,0.08405495]
[1673664866540,0.83054785,20962.0,20957.0,0.08405495]
[1673664866786,0.63054785,20962.0,20958.0,0.08405495]
[1673664867016,0.63054785,20962.0,20958.0,0.25613186]
[1673664867487,0.63054785,20962.0,20959.0,0.1764375]
[1673664867768,0.63054785,20962.0,20959.0,0.26049245]
[1673664867997,0.63054785,20962.0,20959.0,0.23692479]
[1673664868242,0.01037885,20962.0,20959.0,0.23692479]
[1673664868716,0.01037885,20962.0,20959.0,0.15286984]
[1673664868971,0.01037885,20962.0,20955.0,0.15768611]
[1673664868972,0.73205764,20961.0,20955.0,0.15768611]
[1673664869267,1.33172395,20960.0,20954.0,0.15182181]
[1673664869496,0.19072595,20959.0,20954.0,0.15182181]
[1673664869735,0.19072595,20958.0,20955.0,0.01518218]
[1673664869964,0.19072595,20958.0,20952.0,1.04921523]
[1673664870197,0.19072595,20957.0,20953.0,0.1478062]
[1673664870924,0.755755,20960.0,20954.0,0.620403]
[1673664871181,1.255216,20961.0,20955.0,0.620375]
[1673664871405,0.620216,20961.0,20955.0,0.620375]
[1673664871700,0.620216,20961.0,20956.0,0.08405495]
[1673664871942,0.620216,20961.0,20957.0,0.08405495]
[1673664872439,0.620216,20961.0,20957.0,0.2464632]
[1673664872686,1.43856385,20962.0,20957.0,0.2464632]
[1673664872946,0.81837885,20962.0,20958.0,0.02464632]
[1673664873208,0.8212748,20962.0,20958.0,0.02464632]
[1673664873406,0.320743,20961.0,20958.0,0.10870127]
[1673664873651,0.63054885,20962.0,20958.0,0.02464632]
[1673664873916,0.320743,20961.0,20958.0,0.02464632]
[1673664874146,0.63054885,20962.0,20958.0,0.02464632]
[1673664874397,0.2,20961.0,20958.0,0.02464632]
[1673664874627,0.63054885,20962.0,20958.0,0.02464632]
[1673664874888,0.63054885,20962.0,20958.0,0.10870127]
[1673664875152,0.01037885,20962.0,20959.0,0.02583755]
[1673664875374,0.00574015,20964.0,20960.0,0.08405495]
[1673664875614,0.00574015,20964.0,20961.0,0.08405495]
[1673664875881,0.00574015,20964.0,20962.0,0.08405495]
[1673664876338,0.00574015,20964.0,20960.0,0.620225]
[1673664876868,0.00574015,20964.0,20961.0,0.133]
[1673664877094,0.00574015,20964.0,20960.0,0.620225]
[1673664877331,0.1964661,20964.0,20960.0,0.620225]
[1673664877569,0.00574015,20964.0,20960.0,0.620225]
[1673664877814,0.00574015,20964.0,20960.0,0.760225]
[1673664878063,0.00574015,20964.0,20961.0,0.820193]
[1673664878297,0.00574015,20964.0,20961.0,0.78056966]
[1673664879264,0.00574015,20964.0,20961.0,0.98056966]
[1673664879499,0.00574015,20964.0,20961.0,1.11356966]
[1673664880223,0.00574015,20964.0,20961.0,1.17944084]
[1673664880477,0.00574015,20964.0,20963.0,0.62014]
[1673664880710,0.05989015,20964.0,20962.0,0.15706156]
[1673664880984,0.05989015,20964.0,20961.0,0.753174]
[1673664881215,0.05989015,20964.0,20960.0,0.92701701]
[1673664881446,0.1964661,20964.0,20963.0,0.06]
[1673664881693,0.1964661,20964.0,20959.0,0.14219289]
[1673664881694,1.55868979,20964.0,20959.0,0.14219289]
[1673664882164,0.01793,20960.0,20958.0,0.00019]
[1673664882165,0.1369,20961.0,20958.0,0.00019]
[1673664882427,1.240458,20960.0,20958.0,0.00019]
[1673664882671,0.320743,20959.0,20958.0,0.00019]
[1673664882943,0.320743,20959.0,20958.0,0.01711489]
[1673664883208,0.620229,20960.0,20958.0,0.01711489]
[1673664883434,0.675229,20960.0,20958.0,0.01119]
[1673664883685,0.320743,20959.0,20958.0,0.011]
[1673664883923,0.620229,20960.0,20956.0,0.1427228]
[1673664884177,0.055,20959.0,20958.0,0.011]
[1673664885148,0.819888,20959.0,20954.0,0.35548223]
[1673664885400,0.19072595,20958.0,20954.0,0.32648544]
[1673664885643,0.19072595,20957.0,20955.0,0.14253118]
[1673664885894,0.81103495,20958.0,20954.0,0.00019]
[1673664886138,0.620309,20958.0,20955.0,0.16931716]
[1673664886387,0.849758,20959.0,20955.0,0.16931716]
[1673664886388,0.620258,20959.0,20955.0,0.16931716]
[1673664886642,0.620249,20960.0,20955.0,0.14219289]
[1673664886884,0.620249,20960.0,20955.0,0.35548223]
[1673664887129,1.456005,20961.0,20956.0,0.43953718]
[1673664887388,0.055,20958.0,20957.0,0.22624784]
[1673664887635,0.055,20958.0,20957.0,0.14219289]
[1673664888119,0.62016,20963.0,20957.0,0.14219289]
[1673664888377,0.055,20960.0,20958.0,0.08405495]
[1673664888624,0.055,20960.0,20959.0,0.15095171]
[1673664889109,0.81088595,20963.0,20959.0,0.15095171]
[1673664889356,0.001,20960.0,20959.0,0.23500666]
[1673664889612,0.47016,20963.0,20959.0,0.15095171]
[1673664889854,0.47016,20963.0,20960.0,0.02931446]
[1673664890117,1.57866615,20964.0,20960.0,0.11336941]
[1673664890382,1.44186615,20964.0,20960.0,0.11336941]
[1673664890864,0.62586615,20964.0,20960.0,0.11336941]
[1673664891364,0.62586615,20964.0,20961.0,0.16441596]
[1673664891365,0.039,20963.0,20961.0,0.16441596]
[1673664891607,0.62586615,20964.0,20961.0,0.16441596]
[1673664892108,0.320743,20963.0,20961.0,0.15941596]
[1673664892342,0.205231,20962.0,20961.0,0.15941596]
[1673664892586,0.205231,20962.0,20961.0,0.008]
[1673664892843,0.205231,20962.0,20960.0,0.02931446]
[1673664893087,0.00497429,20963.0,20960.0,0.1800998]
[1673664893328,0.05997429,20963.0,20961.0,0.011]
[1673664893569,0.320743,20962.0,20961.0,0.03010998]
[1673664893823,0.05997429,20963.0,20961.0,0.03010998]
[1673664894060,0.00497429,20963.0,20961.0,0.01910998]
[1673664894299,0.00487867,20962.0,20961.0,0.01910998]
[1673664894606,0.05987867,20962.0,20961.0,0.02710998]
[1673664894851,0.00487867,20962.0,20961.0,0.01910998]
[1673664895087,0.00487867,20962.0,20961.0,0.03010998]
[1673664895331,0.00487867,20962.0,20961.0,0.01910998]
[1673664895564,0.00487867,20962.0,20961.0,0.02710998]
[1673664895801,0.05987867,20962.0,20961.0,0.01910998]
[1673664896279,0.11,20962.0,20961.0,0.03010998]
[1673664896532,0.00574015,20964.0,20962.0,0.176759]
[1673664896778,0.00574015,20964.0,20962.0,0.21056519]
[1673664897024,0.00574015,20964.0,20962.0,0.11786114]
[1673664897271,0.00574015,20964.0,20962.0,0.18950856]
[1673664897515,0.01071301,20964.0,20962.0,0.03380619]
[1673664897759,0.00494676,20963.0,20962.0,0.03380619]
[1673664897997,0.00494676,20963.0,20962.0,0.04480619]
[1673664898230,0.00494676,20963.0,20962.0,0.03380619]
[1673664898465,0.00494676,20963.0,20962.0,0.04480619]
[1673664898702,0.00494676,20963.0,20962.0,0.03380619]
[1673664898934,0.04394676,20963.0,20962.0,0.03580619]
[1673664899469,0.00494676,20963.0,20962.0,0.03380619]
[1673664899699,0.00574015,20964.0,20962.0,0.03380619]
[1673664899938,0.00574015,20964.0,20962.0,0.52298227]
[1673664900171,0.00574015,20964.0,20962.0,0.50017608]
[1673664900403,0.00574015,20964.0,20962.0,0.48917608]
[1673664901399,0.01473166,20964.0,20962.0,0.28917608]
[1673664901635,0.01473166,20964.0,20962.0,0.14698319]
[1673664901875,0.04973166,20964.0,20962.0,0.28917608]
[1673664902121,1.08000132,20967.0,20963.0,0.1724793]
[1673664902361,0.004,20964.0,20963.0,0.25653425]
[1673664902595,0.004,20964.0,20963.0,0.1724793]
[1673664903076,0.61300282,20967.0,20963.0,0.1724793]
[1673664903312,0.018,20964.0,20963.0,0.25653425]
[1673664903557,0.61300282,20967.0,20963.0,0.1724793]
[1673664903805,0.48248971,20967.0,20963.0,0.45072714]
[1673664904044,0.48248971,20967.0,20963.0,0.39872714]
[1673664904286,0.48248971,20967.0,20963.0,0.66401648]
[1673664904527,0.45791434,20967.0,20963.0,0.66401648]
[1673664904812,0.60771755,20968.0,20964.0,0.18040368]
[1673664905044,0.58318571,20968.0,20964.0,0.40665152]
[1673664905293,0.30004278,20968.0,20964.0,0.40665152]
[1673664905529,0.30004278,20968.0,20964.0,0.18040368]
[1673664905782,0.2,20966.0,20961.0,0.34124272]
[1673664906046,1.01604995,20965.0,20963.0,0.052]
[1673664906254,0.320743,20964.0,20962.0,0.14166104]
[1673664906491,0.620093,20965.0,20962.0,0.14166104]
[1673664906727,0.620093,20965.0,20963.0,0.02840439]
[1673664906964,0.448243,20964.0,20963.0,0.02840439]
[1673664907474,0.1275,20964.0,20963.0,0.02840439]
[1673664907714,0.448243,20964.0,20963.0,0.02840439]
[1673664907965,0.336743,20964.0,20963.0,0.03240439]
[1673664908209,0.016,20964.0,20963.0,0.03240439]
[1673664908441,0.336743,20964.0,20963.0,0.03240439]
[1673664908698,0.620093,20965.0,20963.0,0.02840439]
[1673664908929,0.016,20964.0,20963.0,0.17909382]
[1673664909183,0.747537,20967.0,20963.0,0.14668943]
[1673664909410,0.016,20964.0,20963.0,0.37693727]
[1673664909655,0.016,20964.0,20963.0,0.29288232]
[1673664910146,0.016,20964.0,20963.0,0.15068943]
[1673664910854,0.016,20964.0,20963.0,0.35948223]
[1673664911104,0.016,20964.0,20963.0,0.97962223]
[1673664911367,0.016,20964.0,20963.0,1.93389936]
[1673664911837,0.016,20964.0,20963.0,2.13389936]
[1673664912110,0.016,20964.0,20963.0,1.46493324]
[1673664912379,0.01037885,20969.0,20963.0,1.46093324]
[1673664912624,0.2011048,20969.0,20964.0,0.6405605]
[1673664912873,0.01037885,20969.0,20965.0,0.27031319]
[1673664913389,0.9482668,20969.0,20963.0,0.35650555]
[1673664913610,0.31822595,20968.0,20964.0,0.125]
[1673664913904,0.320743,20967.0,20963.0,0.18419546]
[1673664914147,0.320743,20966.0,20965.0,0.052]
[1673664914409,1.367516,20968.0,20965.0,0.052]
[1673664914909,0.320743,20967.0,20963.0,0.18419546]
[1673664915153,0.19072595,20967.0,20964.0,0.124]
[1673664915396,1.367516,20968.0,20963.0,0.18419546]
[1673664915637,1.55824195,20968.0,20963.0,0.26825041]
[1673664915873,1.57224195,20968.0,20965.0,0.01]
[1673664916110,1.367516,20968.0,20963.0,0.26825041]
[1673664916351,0.335743,20967.0,20964.0,0.004]
[1673664916590,0.205231,20966.0,20963.0,0.26825041]
[1673664916850,1.367516,20968.0,20964.0,0.17047644]
[1673664916851,1.382516,20968.0,20964.0,0.17047644]
[1673664917104,1.367516,20968.0,20964.0,0.25453139]
[1673664917352,1.382516,20968.0,20965.0,0.02545314]
[1673664917603,1.367516,20968.0,20965.0,0.02545314]
[1673664917849,0.015,20966.0,20965.0,0.02545314]
[1673664918101,0.220231,20966.0,20965.0,0.02545314]
[1673664918352,0.015,20966.0,20965.0,0.02545314]
[1673664918606,1.367516,20968.0,20965.0,0.02545314]
[1673664918856,1.382516,20968.0,20965.0,0.02545314]
[1673664919108,1.367516,20968.0,20965.0,0.02545314]
[1673664919351,0.320743,20967.0,20965.0,0.07645314]
[1673664919641,0.205231,20966.0,20964.0,0.17047644]
[1673664919892,1.57224195,20968.0,20965.0,0.009]
[1673664920151,1.367516,20968.0,20964.0,0.17047644]
[1673664920394,0.320743,20967.0,20965.0,0.06804764]
[1673664920638,0.619996,20968.0,20965.0,0.01704764]
[1673664920878,0.633996,20968.0,20965.0,0.02604764]
[1673664921437,0.320743,20967.0,20965.0,0.02604764]
[1673664921715,0.633996,20968.0,20965.0,0.02604764]
[1673664921959,0.619996,20968.0,20965.0,0.01704764]
[1673664922210,0.61059703,20968.0,20965.0,0.01704764]
[1673664922490,0.320743,20967.0,20965.0,0.06804764]
[1673664922713,0.320743,20967.0,20964.0,0.17047644]
[1673664922714,1.01600795,20966.0,20961.0,0.18995783]
[1673664922966,0.63896895,20965.0,20959.0,0.7594]
[1673664923217,0.39595695,20964.0,20960.0,0.16817249]
[1673664923449,0.51146895,20963.0,20960.0,0.16817249]
[1673664923689,0.205231,20962.0,20960.0,0.16817249]
[1673664923925,0.620121,20964.0,20960.0,0.16817249]
[1673664924162,0.255,20961.0,20959.0,0.13919]
[1673664924403,1.13169795,20960.0,20959.0,0.13919]
[1673664924659,0.940972,20960.0,20959.0,0.13919]
[1673664924892,0.320743,20960.0,20959.0,0.13919]
[1673664925140,0.320743,20960.0,20958.0,0.1796737]
[1673664925385,0.205231,20959.0,20958.0,0.1796737]
[1673664925621,0.205231,20959.0,20958.0,0.19847336]
[1673664925874,0.1415,20960.0,20959.0,0.009]
[1673664926113,0.448243,20960.0,20956.0,0.15736732]
[1673664926387,0.205231,20959.0,20958.0,0.004]
[1673664926615,0.205231,20959.0,20957.0,0.03089819]
[1673664926852,0.1415,20960.0,20959.0,0.01]
[1673664927095,0.1275,20960.0,20956.0,0.15736732]
[1673664927353,0.320743,20959.0,20956.0,0.00832294]
[1673664927654,0.320743,20958.0,20956.0,0.00832294]
[1673664927886,0.332131,20957.0,20956.0,0.00832294]
[1673664928134,0.952448,20957.0,20956.0,0.00832294]
[1673664928908,0.952448,20957.0,20956.0,0.01232294]
[1673664929135,0.347131,20957.0,20956.0,0.00832294]
[1673664929380,0.029,20957.0,20956.0,0.01732294]
[1673664929621,0.747816,20958.0,20956.0,0.0284371]
[1673664930138,0.015,20957.0,20956.0,0.0324371]
[1673664930876,0.1275,20958.0,20956.0,0.0284371]
[1673664931136,0.06815,20957.0,20956.0,0.01732294]
[1673664931386,1.12271,20957.0,20956.0,0.00832294]
[1673664931630,1.12271,20957.0,20956.0,0.01232294]
[1673664931631,1.33771,20957.0,20956.0,0.01232294]
[1673664931877,1.33771,20957.0,20956.0,0.00832294]
[1673664931878,1.32271,20957.0,20956.0,0.00832294]
[1673664932130,1.33671,20957.0,20956.0,0.01732294]
[1673664932372,1.13671,20957.0,20956.0,0.01720012]
[1673664932871,1.12271,20957.0,20956.0,0.00820012]
[1673664933112,1.51996668,20957.0,20956.0,0.00820012]
[1673664933362,1.39246668,20957.0,20956.0,0.00820012]
[1673664933615,1.59246668,20957.0,20956.0,0.00820012]
[1673664933868,1.60646668,20957.0,20956.0,0.01720012]
[1673664934113,1.12271,20957.0,20956.0,0.00820012]
[1673664934360,1.13671,20957.0,20956.0,0.01920012]
[1673664934612,1.32271,20957.0,20956.0,0.00820012]